[Event "Titled Tuesday Blitz December 20 Early 2022"]
[White "MatthewG-p4p"]
[Black "Mikusinski, Bartosz"]
[BlackFideId "1111256"]
[WhiteElo "2825"]
[BlackElo "2090"]
[Result "1/2-1/2"]
[Round "03"]
[TimeControl "180+2"]
[Date "2022.12.20"]
[WhiteClock "0:00:13"]
[BlackClock "0:00:14"]

1. f4 {[%clk 0:02:59]}  d5 {[%clk 0:02:58]} 2. Nf3 {[%clk 0:02:59]}  c5 {[%clk 0:02:57]} 3. g3 {[%clk 0:03:00]}  Nf6 {[%clk 0:02:57]} 4. Bg2 {[%clk 0:03:00]}  g6 {[%clk 0:02:56]} 5. O-O {[%clk 0:03:01]}  Bg7 {[%clk 0:02:53]} 6. d3 {[%clk 0:03:01]}  O-O {[%clk 0:02:52]} 7. Ne5 {[%clk 0:03:00]}  Nc6 {[%clk 0:02:52]} 8. Nxc6 {[%clk 0:03:01]}  bxc6 {[%clk 0:02:53]} 9. e4 {[%clk 0:03:01]}  dxe4 {[%clk 0:02:49]} 10. dxe4 {[%clk 0:03:02]}  Bg4 {[%clk 0:02:48]} 11. Qe1 {[%clk 0:02:31]}  Qd7 {[%clk 0:02:26]} 12. e5 {[%clk 0:02:29]}  Nd5 {[%clk 0:02:24]} 13. Nc3 {[%clk 0:02:20]}  Rab8 {[%clk 0:02:17]} 14. Ne4 {[%clk 0:02:19]}  c4 {[%clk 0:02:14]} 15. c3 {[%clk 0:02:16]}  Rfd8 {[%clk 0:02:09]} 16. Qf2 {[%clk 0:02:11]}  a5 {[%clk 0:02:00]} 17. Re1 {[%clk 0:02:03]}  a4 {[%clk 0:01:58]} 18. a3 {[%clk 0:01:46]}  Rb5 {[%clk 0:01:57]} 19. Nd2 {[%clk 0:01:41]}  Nb6 {[%clk 0:01:51]} 20. Nf1 {[%clk 0:01:41]}  h5 {[%clk 0:01:37]} 21. Ne3 {[%clk 0:01:16]}  Bh3 {[%clk 0:01:36]} 22. Bf3 {[%clk 0:01:11]}  Qc8 {[%clk 0:01:24]} 23. Nc2 {[%clk 0:01:10]}  c5 {[%clk 0:01:22]} 24. Ne3 {[%clk 0:01:03]}  Be6 {[%clk 0:01:22]} 25. Be2 {[%clk 0:00:58]}  Qc6 {[%clk 0:01:20]} 26. Qf1 {[%clk 0:00:56]}  Qe4 {[%clk 0:01:20]} 27. Bf3 {[%clk 0:00:52]}  Qd3 {[%clk 0:01:20]} 28. Qg2 {[%clk 0:00:48]}  Nd5 {[%clk 0:00:39]} 29. Rd1 {[%clk 0:00:20]}  Nxe3 {[%clk 0:00:39]} 30. Rxd3 {[%clk 0:00:20]}  Rxd3 {[%clk 0:00:37]} 31. Bxe3 {[%clk 0:00:14]}  Rxe3 {[%clk 0:00:37]} 32. Rd1 {[%clk 0:00:12]}  Rd3 {[%clk 0:00:32]} 33. Re1 {[%clk 0:00:10]}  Rd8 {[%clk 0:00:22]} 34. Bc6 {[%clk 0:00:09]}  Rb6 {[%clk 0:00:21]} 35. Bxa4 {[%clk 0:00:10]}  Bd5 {[%clk 0:00:17]} 36. Qf2 {[%clk 0:00:07]}  e6 {[%clk 0:00:15]} 37. Rd1 {[%clk 0:00:06]}  Rdb8 {[%clk 0:00:15]} 38. Rd2 {[%clk 0:00:06]}  Bf8 {[%clk 0:00:14]} 39. Bd1 {[%clk 0:00:07]}  Be7 {[%clk 0:00:09]} 40. f5 {[%clk 0:00:07]}  gxf5 {[%clk 0:00:09]} 41. Bxh5 {[%clk 0:00:07]}  Bg5 {[%clk 0:00:09]} 42. Rxd5 {[%clk 0:00:07]}  exd5 {[%clk 0:00:08]} 43. Qxf5 {[%clk 0:00:08]}  Be3+ {[%clk 0:00:09]} 44. Kf1 {[%clk 0:00:07]}  R8b7 {[%clk 0:00:08]} 45. Kg2 {[%clk 0:00:05]}  Kf8 {[%clk 0:00:09]} 46. e6 {[%clk 0:00:05]}  Rxe6 {[%clk 0:00:08]} 47. Qxd5 {[%clk 0:00:06]}  Rbe7 {[%clk 0:00:08]} 48. Qxc4 {[%clk 0:00:06]}  Bc1 {[%clk 0:00:08]} 49. Qb5 {[%clk 0:00:05]}  Kg7 {[%clk 0:00:07]} 50. Bf3 {[%clk 0:00:05]}  Rf6 {[%clk 0:00:07]} 51. Bd5 {[%clk 0:00:03]}  Re5 {[%clk 0:00:07]} 52. c4 {[%clk 0:00:03]}  Re2+ {[%clk 0:00:07]} 53. Kh3 {[%clk 0:00:04]}  Rh6+ {[%clk 0:00:07]} 54. Kg4 {[%clk 0:00:05]}  Rexh2 {[%clk 0:00:07]} 55. Qxc5 {[%clk 0:00:05]}  Bxb2 {[%clk 0:00:07]} 56. Qe3 {[%clk 0:00:05]}  Bf6 {[%clk 0:00:08]} 57. Qd3 {[%clk 0:00:05]}  Rg6+ {[%clk 0:00:08]} 58. Kf4 {[%clk 0:00:05]}  Rf2+ {[%clk 0:00:09]} 59. Bf3 {[%clk 0:00:06]}  Bg5+ {[%clk 0:00:08]} 60. Kg4 {[%clk 0:00:06]}  Bd2+ {[%clk 0:00:07]} 61. Kh3 {[%clk 0:00:04]}  Rh6+ {[%clk 0:00:08]} 62. Kg4 {[%clk 0:00:05]}  Rg6+ {[%clk 0:00:08]} 63. Kh4 {[%clk 0:00:06]}  Bg5+ {[%clk 0:00:08]} 64. Kh3 {[%clk 0:00:03]}  Bf6 {[%clk 0:00:08]} 65. Bh5 {[%clk 0:00:03]}  Rh6 {[%clk 0:00:08]} 66. Kg4 {[%clk 0:00:02]}  Rh2 {[%clk 0:00:06]} 67. c5 {[%clk 0:00:02]}  R2xh5 {[%clk 0:00:06]} 68. Qc2 {[%clk 0:00:03]}  Rg5+ {[%clk 0:00:06]} 69. Kf3 {[%clk 0:00:03]}  Rhh5 {[%clk 0:00:07]} 70. c6 {[%clk 0:00:03]}  Rc5 {[%clk 0:00:07]} 71. Qe4 {[%clk 0:00:04]}  Rhe5 {[%clk 0:00:07]} 72. Qg4+ {[%clk 0:00:04]}  Rg5 {[%clk 0:00:08]} 73. Qd7 {[%clk 0:00:05]}  Rc3+ {[%clk 0:00:08]} 74. Ke2 {[%clk 0:00:06]}  Rgxg3 {[%clk 0:00:08]} 75. c7 {[%clk 0:00:06]}  Rge3+ {[%clk 0:00:09]} 76. Kd2 {[%clk 0:00:07]}  Bg5 {[%clk 0:00:07]} 77. c8=Q {[%clk 0:00:05]}  Red3+ {[%clk 0:00:08]} 78. Ke2 {[%clk 0:00:05]}  Re3+ {[%clk 0:00:08]} 79. Kf2 {[%clk 0:00:05]}  Rf3+ {[%clk 0:00:09]} 80. Kg2 {[%clk 0:00:06]}  Rg3+ {[%clk 0:00:10]} 81. Kh2 {[%clk 0:00:07]}  Bf4 {[%clk 0:00:08]} 82. Qxc3+ {[%clk 0:00:06]}  Rxc3+ {[%clk 0:00:08]} 83. Kg2 {[%clk 0:00:06]}  Rg3+ {[%clk 0:00:08]} 84. Kf2 {[%clk 0:00:07]}  Rg6 {[%clk 0:00:07]} 85. Qd4+ {[%clk 0:00:07]}  Rf6 {[%clk 0:00:07]} 86. Ke2 {[%clk 0:00:07]}  Bd6 {[%clk 0:00:07]} 87. a4 {[%clk 0:00:08]}  Kg6 {[%clk 0:00:07]} 88. Qg4+ {[%clk 0:00:08]}  Kh7 {[%clk 0:00:07]} 89. a5 {[%clk 0:00:08]}  Re6+ {[%clk 0:00:07]} 90. Kd3 {[%clk 0:00:09]}  Be5 {[%clk 0:00:05]} 91. Qf5+ {[%clk 0:00:09]}  Kg7 {[%clk 0:00:05]} 92. Qg4+ {[%clk 0:00:09]}  Kf6 {[%clk 0:00:05]} 93. Qc4 {[%clk 0:00:10]}  Rd6+ {[%clk 0:00:06]} 94. Ke2 {[%clk 0:00:10]}  Re6 {[%clk 0:00:05]} 95. Kf3 {[%clk 0:00:11]}  Rd6 {[%clk 0:00:04]} 96. a6 {[%clk 0:00:11]}  Bd4 {[%clk 0:00:03]} 97. Qb5 {[%clk 0:00:07]}  Bb6 {[%clk 0:00:03]} 98. Qb2+ {[%clk 0:00:07]}  Ke7 {[%clk 0:00:04]} 99. Qb4 {[%clk 0:00:07]}  Kd7 {[%clk 0:00:04]} 100. a7 {[%clk 0:00:07]}  Rf6+ {[%clk 0:00:03]} 101. Kg2 {[%clk 0:00:07]}  Rg6+ {[%clk 0:00:03]} 102. Kh3 {[%clk 0:00:08]}  Bxa7 {[%clk 0:00:03]} 103. Qb7+ {[%clk 0:00:07]}  Ke6 {[%clk 0:00:04]} 104. Qxa7 {[%clk 0:00:08]}  Kf6 {[%clk 0:00:04]} 105. Qd4+ {[%clk 0:00:07]}  Ke7 {[%clk 0:00:05]} 106. Qe5+ {[%clk 0:00:08]}  Kf8 {[%clk 0:00:05]} 107. Kh4 {[%clk 0:00:08]}  Kg8 {[%clk 0:00:06]} 108. Kh5 {[%clk 0:00:09]}  Kf8 {[%clk 0:00:06]} 109. Qe4 {[%clk 0:00:08]}  Kg7 {[%clk 0:00:07]} 110. Qe7 {[%clk 0:00:08]}  Kg8 {[%clk 0:00:07]} 111. Qe5 {[%clk 0:00:07]}  Kf8 {[%clk 0:00:07]} 112. Qh8+ {[%clk 0:00:07]}  Ke7 {[%clk 0:00:07]} 113. Qc8 {[%clk 0:00:08]}  Kf6 {[%clk 0:00:07]} 114. Qc6+ {[%clk 0:00:07]}  Kg7 {[%clk 0:00:08]} 115. Qc3+ {[%clk 0:00:07]}  Kh7 {[%clk 0:00:08]} 116. Qe5 {[%clk 0:00:06]}  Kg8 {[%clk 0:00:08]} 117. Qe7 {[%clk 0:00:06]}  Kg7 {[%clk 0:00:08]} 118. Qe8 {[%clk 0:00:07]}  Kf6 {[%clk 0:00:09]} 119. Qh8+ {[%clk 0:00:04]}  Ke7 {[%clk 0:00:08]} 120. Qd4 {[%clk 0:00:05]}  Kf8 {[%clk 0:00:09]} 121. Qd8+ {[%clk 0:00:05]}  Kg7 {[%clk 0:00:09]} 122. Qd4+ {[%clk 0:00:05]}  Kg8 {[%clk 0:00:10]} 123. Kh4 {[%clk 0:00:06]}  Kh7 {[%clk 0:00:10]} 124. Kh3 {[%clk 0:00:06]}  Kg8 {[%clk 0:00:10]} 125. Kh2 {[%clk 0:00:07]}  Kh7 {[%clk 0:00:10]} 126. Qd8 {[%clk 0:00:07]}  Kg7 {[%clk 0:00:10]} 127. Qe8 {[%clk 0:00:07]}  Kf6 {[%clk 0:00:11]} 128. Qh8+ {[%clk 0:00:08]}  Ke7 {[%clk 0:00:11]} 129. Qa8 {[%clk 0:00:08]}  Kf6 {[%clk 0:00:11]} 130. Qa1+ {[%clk 0:00:09]}  Ke7 {[%clk 0:00:11]} 131. Qe5+ {[%clk 0:00:09]}  Kf8 {[%clk 0:00:11]} 132. Qh5 {[%clk 0:00:09]}  Kg7 {[%clk 0:00:12]} 133. Qe5+ {[%clk 0:00:09]}  Kf8 {[%clk 0:00:12]} 134. Qc3 {[%clk 0:00:10]}  Kg8 {[%clk 0:00:12]} 135. Qc8+ {[%clk 0:00:10]}  Kg7 {[%clk 0:00:12]} 136. Qc3+ {[%clk 0:00:11]}  Kg8 {[%clk 0:00:13]} 137. Qd4 {[%clk 0:00:11]}  Kf8 {[%clk 0:00:13]} 138. Qe5 {[%clk 0:00:12]}  Kg8 {[%clk 0:00:13]} 139. Qe4 {[%clk 0:00:12]}  Kg7 {[%clk 0:00:14]} 140. Qd3 {[%clk 0:00:12]}  Kf8 {[%clk 0:00:14]} 141. Qc3 {[%clk 0:00:13]}  Kg8 {[%clk 0:00:14]} 1/2-1/2


[Site "https://www.chess.com"]

[Event "Titled Tuesday Blitz December 20 Early 2022"]
[White "Mileo, Miguelito"]
[Black "Ural_bogatyr"]
[WhiteFideId "851108"]
[WhiteElo "1721"]
[BlackElo "2615"]
[Result "0-1"]
[Round "03"]
[TimeControl "180+2"]
[Date "2022.12.20"]
[WhiteClock "0:00:09"]
[BlackClock "0:00:24"]

1. e4 {[%clk 0:03:00]}  Nf6 {[%clk 0:02:59]} 2. e5 {[%clk 0:03:00]}  Nd5 {[%clk 0:02:59]} 3. d4 {[%clk 0:03:00]}  d6 {[%clk 0:02:59]} 4. Nf3 {[%clk 0:03:01]}  g6 {[%clk 0:02:59]} 5. c4 {[%clk 0:02:56]}  Nb6 {[%clk 0:02:59]} 6. exd6 {[%clk 0:02:56]}  cxd6 {[%clk 0:02:58]} 7. h3 {[%clk 0:02:54]}  Bg7 {[%clk 0:02:58]} 8. Be2 {[%clk 0:02:55]}  O-O {[%clk 0:02:59]} 9. O-O {[%clk 0:02:55]}  Nc6 {[%clk 0:02:58]} 10. Nc3 {[%clk 0:02:54]}  h5 {[%clk 0:02:26]} 11. Be3 {[%clk 0:02:50]}  Bf5 {[%clk 0:02:24]} 12. Rc1 {[%clk 0:02:36]}  d5 {[%clk 0:02:23]} 13. c5 {[%clk 0:02:15]}  Nc8 {[%clk 0:02:12]} 14. Qb3 {[%clk 0:02:14]}  e6 {[%clk 0:02:08]} 15. Qxb7 {[%clk 0:02:11]}  N8e7 {[%clk 0:02:08]} 16. Qa6 {[%clk 0:02:01]}  Be4 {[%clk 0:01:57]} 17. Rfd1 {[%clk 0:01:24]}  f5 {[%clk 0:01:37]} 18. Ng5 {[%clk 0:01:00]}  Qd7 {[%clk 0:01:14]} 19. Ngxe4 {[%clk 0:00:32]}  dxe4 {[%clk 0:01:10]} 20. d5 {[%clk 0:00:32]}  exd5 {[%clk 0:01:08]} 21. Nxd5 {[%clk 0:00:32]}  Nxd5 {[%clk 0:01:08]} 22. Rxd5 {[%clk 0:00:32]}  Qxd5 {[%clk 0:01:06]} 23. Bc4 {[%clk 0:00:32]}  Qxc4 {[%clk 0:00:53]} 24. Qxc4+ {[%clk 0:00:33]}  Kh8 {[%clk 0:00:52]} 25. b4 {[%clk 0:00:30]}  a6 {[%clk 0:00:51]} 26. Bf4 {[%clk 0:00:30]}  Rfd8 {[%clk 0:00:50]} 27. Bd6 {[%clk 0:00:28]}  Nd4 {[%clk 0:00:48]} 28. a4 {[%clk 0:00:27]}  Rac8 {[%clk 0:00:47]} 29. Qxa6 {[%clk 0:00:24]}  Rc6 {[%clk 0:00:47]} 30. Qf1 {[%clk 0:00:21]}  Rdxd6 {[%clk 0:00:47]} 31. cxd6 {[%clk 0:00:15]}  Rxc1 {[%clk 0:00:47]} 32. Qxc1 {[%clk 0:00:15]}  Ne2+ {[%clk 0:00:48]} 33. Kf1 {[%clk 0:00:15]}  Nxc1 {[%clk 0:00:49]} 34. a5 {[%clk 0:00:16]}  Nb3 {[%clk 0:00:30]} 35. a6 {[%clk 0:00:16]}  Nd2+ {[%clk 0:00:31]} 36. Ke2 {[%clk 0:00:15]}  Nc4 {[%clk 0:00:31]} 37. a7 {[%clk 0:00:12]}  Nb6 {[%clk 0:00:32]} 38. d7 {[%clk 0:00:11]}  Bf6 {[%clk 0:00:32]} 39. Ke3 {[%clk 0:00:09]}  Kg7 {[%clk 0:00:32]} 40. g4 {[%clk 0:00:10]}  Kf7 {[%clk 0:00:31]} 41. gxf5 {[%clk 0:00:07]}  gxf5 {[%clk 0:00:31]} 42. f3 {[%clk 0:00:08]}  exf3 {[%clk 0:00:31]} 43. Kxf3 {[%clk 0:00:09]}  Ke6 {[%clk 0:00:29]} 44. Kf4 {[%clk 0:00:10]}  Bd8 {[%clk 0:00:24]} 45. b5 {[%clk 0:00:09]}  Be7 {[%clk 0:00:24]} 0-1


[Site "https://www.chess.com"]

[Event "Titled Tuesday Blitz December 20 Early 2022"]
[White "Moh, Teng Keong Deon"]
[Black "Andrei_Skvortsov"]
[WhiteFideId "5700868"]
[WhiteElo "2215"]
[BlackElo "2717"]
[Result "0-1"]
[Round "03"]
[TimeControl "180+2"]
[Date "2022.12.20"]
[WhiteClock "0:00:03"]
[BlackClock "0:01:04"]

1. e4 {[%clk 0:02:56]}  d5 {[%clk 0:02:58]} 2. exd5 {[%clk 0:02:52]}  Qxd5 {[%clk 0:02:59]} 3. Nc3 {[%clk 0:02:44]}  Qe5+ {[%clk 0:02:58]} 4. Be2 {[%clk 0:02:42]}  Bg4 {[%clk 0:02:58]} 5. h3 {[%clk 0:02:39]}  Bxe2 {[%clk 0:02:58]} 6. Qxe2 {[%clk 0:02:40]}  Nc6 {[%clk 0:02:54]} 7. Qxe5 {[%clk 0:02:36]}  Nxe5 {[%clk 0:02:55]} 8. d4 {[%clk 0:02:33]}  Nc6 {[%clk 0:02:52]} 9. Be3 {[%clk 0:02:32]}  O-O-O {[%clk 0:02:50]} 10. O-O-O {[%clk 0:02:30]}  e6 {[%clk 0:02:43]} 11. d5 {[%clk 0:02:22]}  exd5 {[%clk 0:02:41]} 12. Rxd5 {[%clk 0:02:23]}  Bd6 {[%clk 0:02:30]} 13. Ne4 {[%clk 0:02:15]}  Be7 {[%clk 0:02:30]} 14. Rxd8+ {[%clk 0:02:14]}  Nxd8 {[%clk 0:02:31]} 15. Nf3 {[%clk 0:02:01]}  Nf6 {[%clk 0:02:30]} 16. Nxf6 {[%clk 0:02:00]}  Bxf6 {[%clk 0:02:31]} 17. Bd4 {[%clk 0:01:59]}  Bxd4 {[%clk 0:02:30]} 18. Nxd4 {[%clk 0:01:59]}  Re8 {[%clk 0:02:29]} 19. Kd2 {[%clk 0:01:55]}  Kd7 {[%clk 0:02:27]} 20. Re1 {[%clk 0:01:46]}  Rxe1 {[%clk 0:02:24]} 21. Kxe1 {[%clk 0:01:46]}  c5 {[%clk 0:02:21]} 22. Ne2 {[%clk 0:01:18]}  Nc6 {[%clk 0:02:15]} 23. Kd2 {[%clk 0:01:16]}  Ke6 {[%clk 0:02:11]} 24. c3 {[%clk 0:01:08]}  b5 {[%clk 0:02:05]} 25. Ke3 {[%clk 0:01:03]}  Ke5 {[%clk 0:01:57]} 26. b3 {[%clk 0:00:39]}  f5 {[%clk 0:01:49]} 27. f4+ {[%clk 0:00:36]}  Kd5 {[%clk 0:01:49]} 28. Kd3 {[%clk 0:00:34]}  c4+ {[%clk 0:01:48]} 29. bxc4+ {[%clk 0:00:33]}  bxc4+ {[%clk 0:01:48]} 30. Ke3 {[%clk 0:00:31]}  Kc5 {[%clk 0:01:43]} 31. Kd2 {[%clk 0:00:12]}  g6 {[%clk 0:01:39]} 32. Ke3 {[%clk 0:00:12]}  Ne7 {[%clk 0:01:39]} 33. g3 {[%clk 0:00:08]}  Nd5+ {[%clk 0:01:39]} 34. Kd2 {[%clk 0:00:08]}  Nf6 {[%clk 0:01:37]} 35. Ke3 {[%clk 0:00:07]}  Ne4 {[%clk 0:01:37]} 36. g4 {[%clk 0:00:07]}  Nf6 {[%clk 0:01:34]} 37. gxf5 {[%clk 0:00:07]}  gxf5 {[%clk 0:01:35]} 38. Kd2 {[%clk 0:00:06]}  Kd5 {[%clk 0:01:29]} 39. Ke3 {[%clk 0:00:06]}  Ne4 {[%clk 0:01:29]} 40. Kf3 {[%clk 0:00:05]}  a6 {[%clk 0:01:22]} 41. Ke3 {[%clk 0:00:04]}  Nd6 {[%clk 0:01:09]} 42. Nd4 {[%clk 0:00:03]}  Kc5 {[%clk 0:01:08]} 43. Kd2 {[%clk 0:00:02]}  Kb6 {[%clk 0:01:05]} 44. Kc2 {[%clk 0:00:02]}  Kc7 {[%clk 0:01:06]} 45. Ne6+ {[%clk 0:00:02]}  Kc6 {[%clk 0:01:04]} 46. Nd4+ {[%clk 0:00:03]}  Kd5 {[%clk 0:01:05]} 47. Kd2 {[%clk 0:00:03]}  Ke4 {[%clk 0:01:05]} 48. Ke2 {[%clk 0:00:03]}  Kxf4 {[%clk 0:01:05]} 49. Kf2 {[%clk 0:00:03]}  Ne4+ {[%clk 0:01:04]} 50. Kg2 {[%clk 0:00:02]}  Nxc3 {[%clk 0:01:04]} 51. Ne2+ {[%clk 0:00:03]}  Nxe2 {[%clk 0:01:04]} 0-1


[Site "https://www.chess.com"]

[Event "Titled Tuesday Blitz December 20 Early 2022"]
[White "Monticone, Sonia"]
[Black "Oleksandr_Bortnyk"]
[WhiteFideId "836613"]
[WhiteElo "1887"]
[BlackElo "2984"]
[Result "0-1"]
[Round "03"]
[TimeControl "180+2"]
[Date "2022.12.20"]
[WhiteClock "0:00:04"]
[BlackClock "0:00:05"]

1. e4 {[%clk 0:03:00]}  Nf6 {[%clk 0:02:58]} 2. e5 {[%clk 0:03:01]}  Nd5 {[%clk 0:02:58]} 3. Nc3 {[%clk 0:03:01]}  Nb6 {[%clk 0:02:56]} 4. a4 {[%clk 0:03:02]}  a5 {[%clk 0:02:56]} 5. d4 {[%clk 0:03:03]}  d5 {[%clk 0:02:57]} 6. Bd3 {[%clk 0:03:01]}  Nc6 {[%clk 0:02:55]} 7. Nge2 {[%clk 0:02:57]}  Nb4 {[%clk 0:02:52]} 8. O-O {[%clk 0:02:56]}  g6 {[%clk 0:02:42]} 9. Bf4 {[%clk 0:02:47]}  Nxd3 {[%clk 0:02:41]} 10. cxd3 {[%clk 0:02:47]}  c6 {[%clk 0:02:34]} 11. Qd2 {[%clk 0:02:48]}  h6 {[%clk 0:02:33]} 12. Be3 {[%clk 0:02:46]}  Bg7 {[%clk 0:02:25]} 13. Ng3 {[%clk 0:02:42]}  h5 {[%clk 0:02:22]} 14. h4 {[%clk 0:02:20]}  Be6 {[%clk 0:01:55]} 15. Rae1 {[%clk 0:02:19]}  Nd7 {[%clk 0:01:52]} 16. Nce2 {[%clk 0:02:17]}  Qb6 {[%clk 0:01:47]} 17. Nf4 {[%clk 0:02:15]}  Nf8 {[%clk 0:01:46]} 18. Ne4 {[%clk 0:02:03]}  dxe4 {[%clk 0:01:31]} 19. d5 {[%clk 0:02:03]}  Qb3 {[%clk 0:01:30]} 20. dxe4 {[%clk 0:01:51]}  cxd5 {[%clk 0:01:22]} 21. exd5 {[%clk 0:01:42]}  Bf5 {[%clk 0:01:22]} 22. Bd4 {[%clk 0:01:23]}  e6 {[%clk 0:01:09]} 23. Re3 {[%clk 0:01:22]}  Qb4 {[%clk 0:01:07]} 24. Qd1 {[%clk 0:01:11]}  Nd7 {[%clk 0:00:55]} 25. dxe6 {[%clk 0:00:51]}  fxe6 {[%clk 0:00:56]} 26. Rg3 {[%clk 0:00:52]}  Bxe5 {[%clk 0:00:33]} 27. Nxg6 {[%clk 0:00:18]}  Bxg6 {[%clk 0:00:33]} 28. Bxe5 {[%clk 0:00:18]}  Nxe5 {[%clk 0:00:33]} 29. Qe2 {[%clk 0:00:13]}  Qf4 {[%clk 0:00:17]} 30. Rg5 {[%clk 0:00:13]}  Bf5 {[%clk 0:00:16]} 31. Re1 {[%clk 0:00:13]}  Ng4 {[%clk 0:00:07]} 32. Qb5+ {[%clk 0:00:13]}  Kf8 {[%clk 0:00:03]} 33. Qc5+ {[%clk 0:00:13]}  Kf7 {[%clk 0:00:03]} 34. g3 {[%clk 0:00:14]}  Qxf2+ {[%clk 0:00:03]} 35. Qxf2 {[%clk 0:00:15]}  Nxf2 {[%clk 0:00:04]} 36. Kxf2 {[%clk 0:00:16]}  Rac8 {[%clk 0:00:04]} 37. Re2 {[%clk 0:00:11]}  Rc4 {[%clk 0:00:04]} 38. b3 {[%clk 0:00:11]}  Rc3 {[%clk 0:00:04]} 39. Rb2 {[%clk 0:00:11]}  Kf6 {[%clk 0:00:04]} 40. b4 {[%clk 0:00:10]}  axb4 {[%clk 0:00:02]} 41. Rxb4 {[%clk 0:00:11]}  Rd8 {[%clk 0:00:02]} 42. Rb2 {[%clk 0:00:12]}  Bg4 {[%clk 0:00:02]} 43. Rgb5 {[%clk 0:00:10]}  Rf3+ {[%clk 0:00:02]} 44. Kg2 {[%clk 0:00:11]}  Ra3 {[%clk 0:00:03]} 45. R5b4 {[%clk 0:00:11]}  Rd5 {[%clk 0:00:02]} 46. Rf4+ {[%clk 0:00:10]}  Rf5 {[%clk 0:00:03]} 47. Rfb4 {[%clk 0:00:09]}  Ra1 {[%clk 0:00:03]} 48. Kh2 {[%clk 0:00:10]}  Bf3 {[%clk 0:00:03]} 49. g4 {[%clk 0:00:10]}  Bxg4 {[%clk 0:00:03]} 50. Rxb7 {[%clk 0:00:09]}  Rxa4 {[%clk 0:00:03]} 51. R7b4 {[%clk 0:00:09]}  Rxb4 {[%clk 0:00:03]} 52. Rxb4 {[%clk 0:00:04]}  Rf2+ {[%clk 0:00:04]} 53. Kg3 {[%clk 0:00:04]}  Rf3+ {[%clk 0:00:05]} 0-1


[Site "https://www.chess.com"]

[Event "Titled Tuesday Blitz December 20 Early 2022"]
[White "Najdoski, Toni"]
[Black "AnaKuchava"]
[WhiteFideId "15001334"]
[WhiteElo "2598"]
[BlackElo "2212"]
[Result "1-0"]
[Round "03"]
[TimeControl "180+2"]
[Date "2022.12.20"]
[WhiteClock "0:01:06"]
[BlackClock "0:00:53"]

1. e4 {[%clk 0:02:54]}  c5 {[%clk 0:02:59]} 2. Nc3 {[%clk 0:02:53]}  Nc6 {[%clk 0:02:58]} 3. Bb5 {[%clk 0:02:50]}  Nd4 {[%clk 0:02:57]} 4. Nf3 {[%clk 0:02:51]}  Nxb5 {[%clk 0:02:57]} 5. Nxb5 {[%clk 0:02:52]}  a6 {[%clk 0:02:58]} 6. Nc3 {[%clk 0:02:52]}  b5 {[%clk 0:02:58]} 7. d4 {[%clk 0:02:52]}  Bb7 {[%clk 0:02:59]} 8. dxc5 {[%clk 0:02:35]}  Rc8 {[%clk 0:02:54]} 9. Be3 {[%clk 0:02:29]}  Nf6 {[%clk 0:02:51]} 10. e5 {[%clk 0:02:15]}  Ng4 {[%clk 0:02:50]} 11. Bd4 {[%clk 0:02:10]}  b4 {[%clk 0:02:50]} 12. Na4 {[%clk 0:02:05]}  Qa5 {[%clk 0:02:42]} 13. b3 {[%clk 0:01:59]}  e6 {[%clk 0:02:35]} 14. O-O {[%clk 0:01:51]}  Bc6 {[%clk 0:02:32]} 15. Nb6 {[%clk 0:01:44]}  Rb8 {[%clk 0:02:09]} 16. Nc4 {[%clk 0:01:38]}  Qb5 {[%clk 0:01:45]} 17. Nd6+ {[%clk 0:01:24]}  Bxd6 {[%clk 0:01:43]} 18. exd6 {[%clk 0:01:25]}  Nf6 {[%clk 0:01:36]} 19. Bxf6 {[%clk 0:01:20]}  gxf6 {[%clk 0:01:37]} 20. Qd4 {[%clk 0:01:18]}  e5 {[%clk 0:01:32]} 21. Nxe5 {[%clk 0:01:11]}  O-O {[%clk 0:00:53]} 22. Ng4 {[%clk 0:01:06]} 1-0


[Site "https://www.chess.com"]

[Event "Titled Tuesday Blitz December 20 Early 2022"]
[White "Nakamura, Hikaru"]
[Black "AvitalBor"]
[WhiteFideId "2016192"]
[WhiteElo "2775"]
[BlackElo "2816"]
[Result "1-0"]
[Round "03"]
[TimeControl "180+2"]
[Date "2022.12.20"]
[WhiteClock "0:01:24"]
[BlackClock "0:00:13"]

1. Nf3 {[%clk 0:03:00]}  c5 {[%clk 0:02:53]} 2. e4 {[%clk 0:03:00]}  d6 {[%clk 0:02:52]} 3. c3 {[%clk 0:03:01]}  Nf6 {[%clk 0:02:51]} 4. h3 {[%clk 0:03:01]}  g6 {[%clk 0:02:46]} 5. Bd3 {[%clk 0:03:01]}  Bg7 {[%clk 0:02:45]} 6. Bc2 {[%clk 0:03:02]}  e5 {[%clk 0:02:44]} 7. b4 {[%clk 0:02:59]}  Nc6 {[%clk 0:02:35]} 8. a3 {[%clk 0:02:58]}  O-O {[%clk 0:02:34]} 9. O-O {[%clk 0:02:58]}  Re8 {[%clk 0:02:33]} 10. d3 {[%clk 0:02:58]}  cxb4 {[%clk 0:02:32]} 11. axb4 {[%clk 0:02:58]}  b5 {[%clk 0:02:29]} 12. Na3 {[%clk 0:02:53]}  Rb8 {[%clk 0:02:28]} 13. Bb3 {[%clk 0:02:53]}  h6 {[%clk 0:02:26]} 14. Nc2 {[%clk 0:02:48]}  d5 {[%clk 0:02:25]} 15. Qe2 {[%clk 0:02:44]}  Be6 {[%clk 0:02:24]} 16. Ba2 {[%clk 0:02:40]}  Qc7 {[%clk 0:02:11]} 17. Bb2 {[%clk 0:02:35]}  Ra8 {[%clk 0:01:50]} 18. Ne3 {[%clk 0:02:32]}  dxe4 {[%clk 0:01:47]} 19. dxe4 {[%clk 0:02:32]}  Bxa2 {[%clk 0:01:47]} 20. Rxa2 {[%clk 0:02:33]}  Qb7 {[%clk 0:01:40]} 21. Nd2 {[%clk 0:02:30]}  a5 {[%clk 0:01:38]} 22. bxa5 {[%clk 0:02:26]}  Rxa5 {[%clk 0:01:38]} 23. Rfa1 {[%clk 0:02:24]}  Rea8 {[%clk 0:01:35]} 24. Rxa5 {[%clk 0:02:23]}  Rxa5 {[%clk 0:01:36]} 25. Rb1 {[%clk 0:02:23]}  Bf8 {[%clk 0:01:32]} 26. c4 {[%clk 0:02:18]}  Qa6 {[%clk 0:01:13]} 27. Nd5 {[%clk 0:02:13]}  Nxd5 {[%clk 0:00:56]} 28. exd5 {[%clk 0:02:04]}  Nd4 {[%clk 0:00:39]} 29. Qxe5 {[%clk 0:02:04]}  Bg7 {[%clk 0:00:40]} 30. Qe8+ {[%clk 0:02:04]}  Kh7 {[%clk 0:00:38]} 31. Bxd4 {[%clk 0:01:56]}  Bxd4 {[%clk 0:00:37]} 32. Qxf7+ {[%clk 0:01:56]}  Bg7 {[%clk 0:00:37]} 33. cxb5 {[%clk 0:01:56]}  Rxb5 {[%clk 0:00:31]} 34. Rxb5 {[%clk 0:01:54]}  Qxb5 {[%clk 0:00:32]} 35. Qe6 {[%clk 0:01:50]}  Qd3 {[%clk 0:00:30]} 36. Ne4 {[%clk 0:01:49]}  Qd1+ {[%clk 0:00:28]} 37. Kh2 {[%clk 0:01:49]}  Qd4 {[%clk 0:00:29]} 38. f4 {[%clk 0:01:38]}  h5 {[%clk 0:00:24]} 39. d6 {[%clk 0:01:35]}  Kh6 {[%clk 0:00:21]} 40. d7 {[%clk 0:01:31]}  Qe3 {[%clk 0:00:13]} 41. d8=Q {[%clk 0:01:26]}  Qxf4+ {[%clk 0:00:13]} 42. g3 {[%clk 0:01:24]} 1-0


[Site "https://www.chess.com"]